[Event "Turkish Super League 2019"]
[Site "Konya"]
[Date "2019.07.19"]
[Round "3"]
[White "Szczepkowska, Karina"]
[Black "Maltsevskaya, Aleksandra"]
[Result "1/2-1/2"]
[ECO "A50"]
[WhiteElo "2425"]
[BlackElo "2294"]
[Annotator "NA"]
[PlyCount "60"]
[EventDate "2019.07.17"]
[EventType "team-tourn"]
[EventCountry "TUR"]
[SourceTitle "playchess.com"]
[Source "ChessBase"]
[SourceQuality "1"]
[TimeControl "40/5400+30:1800+30"]

1. d4 {[%emt 0:33:30]} Nf6 {[%emt 0:14:30]} 2. c4 {[%emt 0:00:30]} b6 {[%emt 0:00:30]} 3. Nf3 {[%emt 0:00:30]} Bb7 {[%emt 0:00:30]} 4. g3 {[%emt 0:00:30]} g6 {[%emt 0:00:30]} 5. Bg2 {[%emt 0:00:30]} Bg7 {[%emt 0:00:30]} 6. O-O {[%emt 0:00:30]} O-O {[%emt 0:00:30]} 7. Nc3 {[%emt 0:00:30]} Ne4 {[%emt 0:00:30]} 8. Nxe4 {[%emt 0:00:30]} Bxe4 {[%emt 0:00:30]} 9. d5 {[%emt 0:00:30]} e5 {[%emt 0:00:30]} 10. Bd2 {[%emt 0:00:30]} d6 {[%emt 0:00:30]} 11. Qc1 {[%emt 0:00:30]} Bxf3 {[%emt 0:04:30]} 12. exf3 {[%emt 0:03:30]} a5 {[%emt 0:03:30]} 13. Rb1 {[%emt 0:03:30]} Nd7 {[%emt 0:01:30]} 14. b3 {[%emt 0:00:30]} f5 {[%emt 0:07:30]} 15. Qc2 {[%emt 0:00:30]} Qf6 {[%emt 0:00:30]} 16. a3 {[%emt 0:01:30]} Qf7 {[%emt 0:16:30]} 17. Rbd1 {[%emt 0:07:30]} Ra7 {[%emt 0:08:30]} 18. Bc1 {[%emt 0:00:30]} Rb8 {[%emt 0:02:30]} 19. Rfe1 {[%emt 0:01:30]} Rab7 {[%emt 0:01:30]} 20. f4 {[%emt 0:05:30]} e4 {[%emt 0:05:30]} 21. f3 {[%emt 0:00:00]} exf3 {[%emt 0:00:30]} 22. Bxf3 {[%emt 0:03:00]} b5 {[%emt 0:03:30]} 23. cxb5 {[%emt 0:02:30]} Rxb5 {[%emt 0:00:00]} 24. Qxc7 {[%emt 0:04:30]} Rxb3 {[%emt 0:01:00]} 25. Bg2 {[%emt 0:01:30]} Bf8 {[%emt 0:02:30]} 26. Qxa5 {[%emt 0:02:30]} Nc5 {[%emt 0:01:30]} 27. Re3 {[%emt 0:06:30]} Rb1 {[%emt 0:07:34]} 28. Ree1 {[%emt 0:00:30]} R1b3 {[%emt 0:09:27]} 29. Re3 {[%emt 0:00:30]} Rb1 {[%emt 0:01:37]} 30. Ree1 {[%emt 0:00:30]} R1b3 {[%emt 0:00:08]} 1/2-1/2

[Event "Turkish Super League 2019"]
[Site "Konya"]
[Date "2019.07.19"]
[Round "3"]
[White "Tsolakidou, Stavroula"]
[Black "Mammadzada, Gunay"]
[Result "1-0"]
[ECO "B51"]
[WhiteElo "2423"]
[BlackElo "2427"]
[Annotator "NA"]
[PlyCount "68"]
[EventDate "2019.07.17"]
[EventType "team-tourn"]
[EventCountry "TUR"]
[SourceTitle "playchess.com"]
[Source "ChessBase"]
[SourceQuality "1"]
[TimeControl "40/5400+30:1800+30"]

1. e4 {[%emt 0:11:30]} c5 {[%emt 0:41:30]} 2. Nf3 {[%emt 0:00:30]} d6 {[%emt 0:00:30]} 3. Bb5+ {[%emt 0:00:30]} Nd7 {[%emt 0:00:30]} 4. Ba4 {[%emt 0:00:30]} Ngf6 {[%emt 0:00:30]} 5. O-O {[%emt 0:00:30]} e6 {[%emt 0:00:30]} 6. Re1 {[%emt 0:00:30]} Be7 {[%emt 0:00:30]} 7. c3 {[%emt 0:00:30]} a6 {[%emt 0:00:30]} 8. d4 {[%emt 0:00:30]} b5 {[%emt 0:00:30]} 9. Bc2 {[%emt 0:00:30]} Bb7 {[%emt 0:00:30]} 10. Nbd2 {[%emt 0:00:30]} cxd4 {[%emt 0:00:30]} 11. cxd4 {[%emt 0:00:30]} e5 {[%emt 0:00:30]} 12. Nf1 {[%emt 0:11:30]} O-O {[%emt 0:05:30]} 13. d5 {[%emt 0:08:30]} Nb6 {[%emt 0:01:30]} 14. Bd3 {[%emt 0:11:30]} Re8 {[%emt 0:06:30]} 15. b3 {[%emt 0:06:30]} Nfd7 {[%emt 0:07:30]} 16. Bd2 {[%emt 0:21:30]} f5 {[%emt 0:05:30]} 17. Ba5 {[%emt 0:02:30]} Qb8 {[%emt 0:08:07]} 18. a4 {[%emt 0:05:57]} bxa4 {[%emt 0:02:22]} 19. bxa4 {[%emt 0:02:02]} Qa7 {[%emt 0:00:13]} 20. Rb1 {[%emt 0:07:10]} Rab8 {[%emt 0:01:11]} 21. Ne3 {[%emt 0:03:24]} f4 {[%emt 0:01:09]} 22. Nf5 {[%emt 0:00:05]} Bf8 {[%emt 0:00:00]} 23. Ng5 {[%emt 0:00:34]} g6 {[%emt 0:04:07]} 24. Nh4 {[%emt 0:01:11]} Bh6 {[%emt 0:09:27]} 25. Ne6 {[%emt 0:03:05]} Na8 {[%emt 0:01:59]} 26. Bb4 {[%emt 0:00:24]} Nc5 {[%emt 0:00:11]} 27. Bxc5 {[%emt 0:00:59]} dxc5 {[%emt 0:00:30]} 28. Qg4 {[%emt 0:00:30]} Bc8 {[%emt 0:00:30]} 29. Rxb8 {[%emt 0:00:30]} Qxb8 {[%emt 0:00:30]} 30. Nxg6 {[%emt 0:00:00]} Bxe6 {[%emt 0:00:25]} 31. Ne7+ {[%emt 0:00:10]} Kh8 {[%emt 0:01:28]} 32. Qxe6 {[%emt 0:00:07]} c4 {[%emt 0:00:05]} 33. Qxh6 {[%emt 0:00:57]} Rxe7 {[%emt 0:00:40]} 34. Rb1 {[%emt 0:00:23]} Re6 {[%emt 0:01:00]} 1-0

[Event "Turkish Super League 2019"]
[Site "Konya"]
[Date "2019.07.19"]
[Round "3"]
[White "Kerigan, Demre"]
[Black "Haznedaroglu, Kivanc"]
[Result "0-1"]
[ECO "B25"]
[WhiteElo "2398"]
[BlackElo "2448"]
[Annotator "NA"]
[PlyCount "80"]
[EventDate "2019.07.17"]
[EventType "team-tourn"]
[EventCountry "TUR"]
[SourceTitle "playchess.com"]
[Source "ChessBase"]
[SourceQuality "1"]
[TimeControl "40/5400+30:1800+30"]

1. e4 {[%emt 0:28:30]} c5 {[%emt 0:15:30]} 2. Nc3 {[%emt 0:00:30]} a6 {[%emt 0:00:30]} 3. g3 {[%emt 0:00:30]} g6 {[%emt 0:00:30]} 4. Bg2 {[%emt 0:00:30]} Bg7 {[%emt 0:00:30]} 5. Nge2 {[%emt 0:00:30]} Nc6 {[%emt 0:00:30]} 6. d3 {[%emt 0:00:30]} d6 {[%emt 0:00:30]} 7. O-O {[%emt 0:00:30]} e6 {[%emt 0:00:30]} 8. f4 {[%emt 0:00:30]} Nge7 {[%emt 0:00:30]} 9. Be3 {[%emt 0:00:30]} Nd4 {[%emt 0:00:30]} 10. Qd2 {[%emt 0:00:30]} O-O {[%emt 0:00:30]} 11. g4 {[%emt 0:00:30]} f5 {[%emt 0:00:30]} 12. exf5 {[%emt 0:00:30]} exf5 {[%emt 0:00:30]} 13. g5 {[%emt 0:00:30]} Be6 {[%emt 0:00:30]} 14. Rae1 {[%emt 0:00:30]} Bf7 {[%emt 0:00:30]} 15. Nc1 {[%emt 0:00:30]} Qd7 {[%emt 0:00:30]} 16. Nd1 {[%emt 0:00:30]} Rae8 {[%emt 0:00:30]} 17. c3 {[%emt 0:00:30]} Ndc6 {[%emt 0:00:30]} 18. Bf2 {[%emt 0:03:30]} b5 {[%emt 0:01:30]} 19. Ne3 {[%emt 0:05:30]} Qc7 {[%emt 0:09:30]} 20. Nb3 {[%emt 0:19:30]} a5 {[%emt 0:01:30]} 21. d4 {[%emt 0:07:30]} a4 {[%emt 0:07:30]} 22. dxc5 {[%emt 0:08:30]} Rd8 {[%emt 0:06:30]} 23. cxd6 {[%emt 0:03:58]} axb3 {[%emt 0:05:30]} 24. Rd1 {[%emt 0:00:07]} Qb8 {[%emt 0:02:30]} 25. axb3 {[%emt 0:02:23]} Bxb3 {[%emt 0:02:30]} 26. dxe7 {[%emt 0:01:26]} Nxe7 {[%emt 0:00:00]} 27. Qe2 {[%emt 0:02:15]} Bxd1 {[%emt 0:03:00]} 28. Nxd1 {[%emt 0:01:41]} Rfe8 {[%emt 0:00:30]} 29. Qe6+ {[%emt 0:06:22]} Kh8 {[%emt 0:00:30]} 30. Qf7 {[%emt 0:01:33]} Qxf4 {[%emt 0:05:30]} 31. Bb6 {[%emt 0:01:01]} Qxg5 {[%emt 0:00:00]} 32. Bxd8 {[%emt 0:00:09]} Rxd8 {[%emt 0:00:00]} 33. Re1 {[%emt 0:00:03]} Ng8 {[%emt 0:08:30]} 34. Nf2 {[%emt 0:01:06]} b4 {[%emt 0:08:30]} 35. Qc7 {[%emt 0:02:19]} bxc3 {[%emt 0:05:33]} 36. bxc3 {[%emt 0:00:03]} Rd2 {[%emt 0:00:16]} 37. Qc4 {[%emt 0:02:03]} Rc2 {[%emt 0:02:02]} 38. Qd5 {[%emt 0:00:39]} Qd2 {[%emt 0:07:14]} 39. Nd3 {[%emt 0:00:45]} Qxc3 {[%emt 0:03:55]} 40. Re8 {[%emt 0:00:54]} Bd4+ {[%emt 0:00:00]} 0-1

[Event "Turkish Super League 2019"]
[Site "Konya"]
[Date "2019.07.19"]
[Round "3"]
[White "Yurtseven, Melih"]
[Black "Ozen, Deniz"]
[Result "1/2-1/2"]
[ECO "D11"]
[WhiteElo "2381"]
[BlackElo "2430"]
[Annotator "NA"]
[PlyCount "106"]
[EventDate "2019.07.17"]
[EventType "team-tourn"]
[EventCountry "TUR"]
[SourceTitle "playchess.com"]
[Source "ChessBase"]
[SourceQuality "1"]
[TimeControl "40/5400+30:1800+30"]

1. Nf3 Nf6 2. c4 c6 3. d4 d5 4. Qc2 dxc4 5. e4 Bg4 6. Be3 Nbd7 7. Nbd2 e6 8. Bxc4 Be7 9. Bd3 Bxf3 10. Nxf3 Bb4+ 11. Kf1 h6 12. h3 Be7 13. g3 O-O 14. Kg2 c5 15. Qe2 cxd4 16. Bxd4 Bc5 17. Bc3 Qe7 18. e5 Nd5 19. Bd2 f5 20. exf6 Rxf6 21. Rhf1 Raf8 22. Be4 Qf7 23. Be1 Qh5 24. Rd1 Kh8 25. Bxd5 exd5 26. Nd4 Qf7 27. Bc3 Bb6 28. Rde1 Nc5 29. f3 Na4 30. Qe7 Nxc3 31. Qxf7 R6xf7 32. bxc3 Bxd4 33. cxd4 Rc7 34. Re5 Rd8 35. Rf2 Rc4 36. Rd2 Rd7 37. f4 b5 38. Kf3 b4 39. Kg4 Kg8 40. f5 Rc3 41. Re6 a5 42. Ra6 Re7 43. Kh4 Ree3 {[%emt 1:59:30]} 44. Rg2 {[%emt 2:17:09]} Rcd3 {[%emt 0:02:30]} 45. Rxa5 {[%emt 0:00:46]} Rxd4+ {[%emt 0:00:30]} 46. g4 {[%emt 0:00:08]} Kh7 {[%emt 0:00:51]} 47. Rh2 {[%emt 0:02:32]} Rf3 {[%emt 0:02:59]} 48. Kh5 {[%emt 0:00:55]} Rg3 {[%emt 0:04:36]} 49. Ra6 {[%emt 0:02:01]} Rd2 {[%emt 0:02:24]} 50. Rh1 {[%emt 0:00:53]} Rd1 {[%emt 0:00:05]} 51. Rh2 {[%emt 0:00:16]} Rd2 {[%emt 0:00:01]} 52. Rh1 {[%emt 0:00:23]} Rd1 {[%emt 0:00:01]} 53. Rh2 {[%emt 0:00:13]} Rd2 {[%emt 0:00:28]} 1/2-1/2

[Event "Turkish Super League 2019"]
[Site "Konya"]
[Date "2019.07.19"]
[Round "3"]
[White "Selbes, Tarik"]
[Black "Ertan, Can"]
[Result "0-1"]
[ECO "E00"]
[WhiteElo "2342"]
[BlackElo "2396"]
[Annotator "NA"]
[PlyCount "78"]
[EventDate "2019.07.17"]
[EventType "team-tourn"]
[EventCountry "TUR"]
[SourceTitle "playchess.com"]
[Source "ChessBase"]
[SourceQuality "1"]
[TimeControl "40/5400+30:1800+30"]

1. d4 {[%emt 0:19:30]} Nf6 {[%emt 0:32:30]} 2. c4 {[%emt 0:00:30]} e6 {[%emt 0:00:30]} 3. a3 {[%emt 0:00:30]} b6 {[%emt 0:00:30]} 4. Nc3 {[%emt 0:00:30]} d5 {[%emt 0:00:30]} 5. cxd5 {[%emt 0:00:30]} exd5 {[%emt 0:00:30]} 6. Bg5 {[%emt 0:00:30]} Be7 {[%emt 0:00:30]} 7. e3 {[%emt 0:00:30]} O-O {[%emt 0:00:30]} 8. Nf3 {[%emt 0:00:30]} h6 {[%emt 0:00:30]} 9. Bf4 {[%emt 0:00:30]} Nh5 {[%emt 0:00:30]} 10. Be5 {[%emt 0:00:30]} Nc6 {[%emt 0:00:30]} 11. Rc1 {[%emt 0:00:30]} Nf6 {[%emt 0:00:30]} 12. Nb5 {[%emt 0:00:30]} Nxe5 {[%emt 0:00:30]} 13. Nxe5 {[%emt 0:01:30]} c5 {[%emt 0:00:30]} 14. Be2 {[%emt 0:05:30]} Bb7 {[%emt 0:04:30]} 15. Bf3 {[%emt 0:04:30]} Nd7 {[%emt 0:06:30]} 16. Nd3 {[%emt 0:01:30]} c4 {[%emt 0:07:30]} 17. Nf4 {[%emt 0:00:30]} Nf6 {[%emt 0:00:30]} 18. h4 {[%emt 0:05:30]} Ne4 {[%emt 0:06:30]} 19. Bxe4 {[%emt 0:03:30]} dxe4 {[%emt 0:01:30]} 20. Qh5 {[%emt 0:15:30]} Qd7 {[%emt 0:02:30]} 21. Nc3 {[%emt 0:15:30]} Rad8 {[%emt 0:03:30]} 22. g4 {[%emt 0:03:18]} Bd6 {[%emt 0:03:30]} 23. Nce2 {[%emt 0:00:31]} b5 {[%emt 0:01:30]} 24. g5 {[%emt 0:00:51]} g6 {[%emt 0:00:30]} 25. Qxh6 {[%emt 0:02:20]} Rfe8 {[%emt 0:00:30]} 26. Nh5 {[%emt 0:06:47]} gxh5 {[%emt 0:01:30]} 27. g6 {[%emt 0:00:02]} fxg6 {[%emt 0:08:28]} 28. Qxg6+ {[%emt 0:00:59]} Kh8 {[%emt 0:00:14]} 29. Rg1 {[%emt 0:01:28]} Re6 {[%emt 0:02:17]} 30. Qxh5+ {[%emt 0:01:31]} Qh7 {[%emt 0:00:04]} 31. Qxb5 {[%emt 0:00:05]} Ba6 {[%emt 0:00:35]} 32. Qa5 {[%emt 0:01:32]} Rf8 {[%emt 0:04:34]} 33. Rg5 {[%emt 0:01:08]} Rh6 {[%emt 0:00:12]} 34. Ng3 {[%emt 0:06:03]} Rxh4 {[%emt 0:00:12]} 35. Nf5 {[%emt 0:01:41]} Rh5 {[%emt 0:01:31]} 36. Nxd6 {[%emt 0:01:12]} Rxg5 {[%emt 0:00:15]} 37. Qxg5 {[%emt 0:00:27]} Qh1+ {[%emt 0:00:03]} 38. Ke2 {[%emt 0:00:03]} c3+ {[%emt 0:00:05]} 39. Nb5 {[%emt 0:00:52]} Qf3+ {[%emt 0:00:30]} 0-1

[Event "Turkish Super League 2019"]
[Site "Konya"]
[Date "2019.07.19"]
[Round "3"]
[White "Ozturk, Kubra"]
[Black "Daulyte-Cornette, Deimante"]
[Result "1/2-1/2"]
[ECO "E46"]
[WhiteElo "2317"]
[BlackElo "2444"]
[Annotator "NA"]
[PlyCount "71"]
[EventDate "2019.07.17"]
[EventType "team-tourn"]
[EventCountry "TUR"]
[SourceTitle "playchess.com"]
[Source "ChessBase"]
[SourceQuality "1"]
[TimeControl "40/5400+30:1800+30"]

1. d4 {[%emt 0:22:30]} Nf6 {[%emt 0:24:30]} 2. c4 {[%emt 0:00:30]} e6 {[%emt 0:00:30]} 3. Nc3 {[%emt 0:00:30]} Bb4 {[%emt 0:00:30]} 4. e3 {[%emt 0:00:30]} O-O {[%emt 0:00:30]} 5. Nge2 {[%emt 0:00:30]} Re8 {[%emt 0:00:30]} 6. a3 {[%emt 0:00:30]} Bf8 {[%emt 0:00:30]} 7. Ng3 {[%emt 0:00:30]} d5 {[%emt 0:00:30]} 8. cxd5 {[%emt 0:00:30]} exd5 {[%emt 0:00:30]} 9. b4 {[%emt 0:00:30]} a5 {[%emt 0:00:30]} 10. Rb1 {[%emt 0:00:30]} axb4 {[%emt 0:00:30]} 11. axb4 {[%emt 0:00:30]} Nc6 {[%emt 0:00:30]} 12. b5 {[%emt 0:00:30]} Na5 {[%emt 0:00:30]} 13. Bd3 {[%emt 0:00:30]} c5 {[%emt 0:00:30]} 14. bxc6 {[%emt 0:00:30]} bxc6 {[%emt 0:00:30]} 15. O-O {[%emt 0:00:30]} Ba6 {[%emt 0:00:30]} 16. Bxa6 {[%emt 0:10:30]} Rxa6 {[%emt 0:00:30]} 17. Qd3 {[%emt 0:00:30]} Rb6 {[%emt 0:06:30]} 18. Rxb6 {[%emt 0:10:30]} Qxb6 {[%emt 0:00:00]} 19. Bd2 {[%emt 0:09:30]} Nc4 20. Rb1 {[%emt 0:00:30]} Qc7 {[%emt 0:03:30]} 21. Bc1 {[%emt 0:02:30]} h5 {[%emt 0:11:30]} 22. h3 {[%emt 0:05:30]} g6 {[%emt 0:02:30]} 23. Nf1 {[%emt 0:01:30]} Bh6 {[%emt 0:10:30]} 24. e4 {[%emt 0:10:30]} Bxc1 {[%emt 0:00:30]} 25. exd5 {[%emt 0:00:30]} cxd5 {[%emt 0:17:07]} 26. Rxc1 {[%emt 0:00:00]} Rc8 {[%emt 0:00:00]} 27. Ne3 {[%emt 0:03:23]} Nxe3 {[%emt 0:03:04]} 28. Qxe3 {[%emt 0:00:03]} Ne4 {[%emt 0:06:53]} 29. Ne2 {[%emt 0:01:30]} Qd7 {[%emt 0:00:35]} 30. Rxc8+ {[%emt 0:00:30]} Qxc8 {[%emt 0:00:00]} 31. f3 {[%emt 0:02:00]} Nf6 {[%emt 0:03:19]} 32. Qe5 {[%emt 0:00:30]} Qe6 {[%emt 0:00:32]} 33. Nf4 {[%emt 0:00:45]} Qxe5 {[%emt 0:02:03]} 34. dxe5 {[%emt 0:00:30]} Nd7 {[%emt 0:00:00]} 35. Nxd5 {[%emt 0:08:41]} Nxe5 {[%emt 0:00:03]} 36. h4 {[%emt 0:00:30]} 1/2-1/2

[Event "Turkish Super League 2019"]
[Site "Konya"]
[Date "2019.07.19"]
[Round "3"]
[White "Tasdogen, Dincer"]
[Black "Samani, Yamac"]
[Result "1/2-1/2"]
[ECO "A05"]
[WhiteElo "2310"]
[BlackElo "2266"]
[Annotator "NA"]
[PlyCount "60"]
[EventDate "2019.07.17"]
[EventType "team-tourn"]
[EventCountry "TUR"]
[SourceTitle "playchess.com"]
[Source "ChessBase"]
[SourceQuality "1"]
[TimeControl "40/5400+30:1800+30"]

1. e4 {[%emt 0:24:30]} c5 {[%emt 0:24:30]} 2. Nf3 {[%emt 0:00:30]} d6 {[%emt 0:00:30]} 3. g3 {[%emt 0:00:30]} Nf6 {[%emt 0:00:30]} 4. d3 {[%emt 0:00:30]} g6 {[%emt 0:00:30]} 5. Bg2 {[%emt 0:00:30]} Bg7 {[%emt 0:00:30]} 6. O-O {[%emt 0:00:30]} O-O {[%emt 0:00:30]} 7. Re1 {[%emt 0:00:30]} Nc6 {[%emt 0:00:30]} 8. c3 {[%emt 0:00:30]} e5 {[%emt 0:00:30]} 9. a3 {[%emt 0:00:30]} a5 {[%emt 0:00:30]} 10. a4 {[%emt 0:00:30]} h6 {[%emt 0:00:30]} 11. Na3 {[%emt 0:00:30]} Re8 {[%emt 0:00:30]} 12. Nd2 {[%emt 0:00:30]} Be6 {[%emt 0:00:30]} 13. Ndc4 {[%emt 0:00:30]} d5 {[%emt 0:00:30]} 14. exd5 {[%emt 0:00:30]} Nxd5 {[%emt 0:00:30]} 15. Nb5 {[%emt 0:00:30]} Re7 {[%emt 0:00:30]} 16. Qc2 {[%emt 0:09:30]} Rd7 {[%emt 0:01:30]} 17. b3 {[%emt 0:08:30]} Rc8 {[%emt 0:11:30]} 18. Ba3 {[%emt 0:01:30]} b6 {[%emt 0:02:30]} 19. Rad1 {[%emt 0:03:30]} h5 {[%emt 0:04:30]} 20. Bf3 {[%emt 0:08:30]} Bf5 {[%emt 0:04:30]} 21. Qe2 {[%emt 0:10:30]} h4 {[%emt 0:15:30]} 22. Bb2 {[%emt 0:00:00]} hxg3 {[%emt 0:01:30]} 23. hxg3 {[%emt 0:00:00]} Nde7 {[%emt 0:02:30]} 24. Be4 {[%emt 0:08:30]} Be6 {[%emt 0:00:30]} 25. Bg2 {[%emt 0:05:06]} Nd5 {[%emt 0:01:30]} 26. Nd2 {[%emt 0:02:40]} Nde7 {[%emt 0:02:30]} 27. Nc4 {[%emt 0:00:15]} Nd5 {[%emt 0:01:30]} 28. Nd2 {[%emt 0:00:33]} Nde7 {[%emt 0:05:59]} 29. Nc4 {[%emt 0:00:43]} Nd5 {[%emt 0:00:30]} 30. Nd2 {[%emt 0:00:00]} Nde7 {[%emt 0:00:12]} 1/2-1/2

[Event "Turkish Super League 2019"]
[Site "Konya"]
[Date "2019.07.19"]
[Round "3"]
[White "Caglar, Sila"]
[Black "Atalik, Ekaterina"]
[Result "1/2-1/2"]
[ECO "C54"]
[WhiteElo "2306"]
[BlackElo "2459"]
[Annotator "ChessBase"]
[PlyCount "109"]
[EventDate "2019.07.17"]
[EventType "team-tourn"]
[EventCountry "TUR"]
[SourceTitle "playchess.com"]
[Source "ChessBase"]
[SourceQuality "1"]
[TimeControl "40/5400+30:1800+30"]

1. e4 e5 2. Nf3 Nc6 3. Bc4 Bc5 4. c3 Nf6 5. d3 d6 6. a4 a5 7. Bg5 h6 8. Bh4 Qe7 9. Qb3 g5 10. Bg3 Nh5 11. Nbd2 O-O 12. h3 Nd8 13. d4 Ba7 14. O-O-O Nxg3 15. fxg3 c6 16. g4 Kg7 17. Qa3 Rb8 18. dxe5 Bc5 19. exd6 Bxd6 20. Qa2 b5 21. axb5 cxb5 22. Bd5 a4 23. e5 Bc7 24. h4 Bxg4 25. hxg5 h5 26. Qb1 b4 27. c4 a3 28. Qe4 b3 29. Kb1 axb2 30. Qf4 Rb6 31. Qf6+ Qxf6 32. gxf6+ Kh6 33. Kxb2 Ne6 34. Bxe6 Rxe6 35. Rde1 Rb8 36. Re4 Bf5 37. Reh4 Bg6 38. Re1 Rbe8 39. c5 Bxe5+ 40. Nxe5 Rxe5 41. Rxe5 Rxe5 42. c6 Re2 43. Rd4 Rxg2 44. Kxb3 Bf5 45. Rd8 Be6+ 46. Kc3 Rg3+ 47. Kd4 Ra3 48. Ne4 {[%emt 2:15:38]} Ra4+ {[%emt 2:02:00]} 49. Ke5 {[%emt 0:03:47]} Rc4 {[%emt 0:00:30]} 50. Ng3 {[%emt 0:02:04]} Rxc6 {[%emt 0:03:09]} 51. Rh8+ {[%emt 0:01:11]} Kg6 {[%emt 0:03:34]} 52. Rg8+ {[%emt 0:00:33]} Kh7 {[%emt 0:00:28]} 53. Rg7+ {[%emt 0:02:31]} Kh8 {[%emt 0:00:43]} 54. Rg5 {[%emt 0:00:24]} Rc5+ {[%emt 0:02:14]} 55. Ke4 {[%emt 0:00:30]} 1/2-1/2

[Event "Turkish Super League 2019"]
[Site "Konya"]
[Date "2019.07.19"]
[Round "3"]
[White "Dordzhieva, Dinara"]
[Black "Savina, Anastasia"]
[Result "1/2-1/2"]
[ECO "E62"]
[WhiteElo "2306"]
[BlackElo "2344"]
[Annotator "NA"]
[PlyCount "94"]
[EventDate "2019.07.17"]
[EventType "team-tourn"]
[EventCountry "TUR"]
[SourceTitle "playchess.com"]
[Source "ChessBase"]
[SourceQuality "1"]
[TimeControl "40/5400+30:1800+30"]

1. d4 Nf6 2. c4 g6 3. Nc3 Bg7 4. Nf3 O-O 5. g3 d6 6. Bg2 Nc6 7. O-O e5 8. dxe5 dxe5 9. Qxd8 Rxd8 10. Bg5 Be6 11. Nd2 h6 12. Bxf6 Bxf6 13. Nde4 Be7 14. Nd5 Rac8 15. Nxe7+ Nxe7 16. b3 b6 17. Rfd1 f5 18. Nc3 c6 19. h4 Kf7 20. e3 Kf6 21. f4 g5 22. hxg5+ hxg5 23. Kf2 Bf7 24. Rxd8 Rxd8 25. Rd1 Rxd1 26. Nxd1 b5 27. cxb5 cxb5 28. Nc3 b4 29. Nb5 a6 30. Nd6 gxf4 31. gxf4 Bd5 32. Ne8+ Kf7 33. Nc7 Bxg2 34. Kxg2 e4 35. Nxa6 Nd5 36. Kf2 Ke7 37. Nc5 Nc3 38. Na4 Nxa2 39. Nb6 Ke6 40. Nc4 Nc1 41. Nd2 Nd3+ 42. Kg3 Kf6 {[%emt 2:15:30]} 43. Nc4 {[%emt 2:00:30]} Nc1 {[%emt 0:00:30]} 44. Na5 {[%emt 0:01:30]} Kg6 {[%emt 0:04:05]} 45. Nc6 {[%emt 0:01:23]} Nxb3 {[%emt 0:01:01]} 46. Nxb4 {[%emt 0:00:04]} Nd2 {[%emt 0:00:39]} 47. Nc6 {[%emt 0:00:30]} Kf6 {[%emt 0:01:07]} 1/2-1/2

[Event "Turkish Super League 2019"]
[Site "Konya"]
[Date "2019.07.19"]
[Round "3"]
[White "Injac, Teodora"]
[Black "Osmak, Iulija"]
[Result "0-1"]
[ECO "E14"]
[WhiteElo "2305"]
[BlackElo "2395"]
[Annotator "NA"]
[PlyCount "96"]
[EventDate "2019.07.17"]
[EventType "team-tourn"]
[EventCountry "TUR"]
[SourceTitle "playchess.com"]
[Source "ChessBase"]
[SourceQuality "1"]
[TimeControl "40/5400+30:1800+30"]

1. d4 Nf6 2. Nf3 e6 3. e3 b6 4. Bd3 Bb7 5. O-O c5 6. c4 g6 7. Nc3 Bg7 8. d5 exd5 9. cxd5 Nxd5 10. Nb5 O-O 11. Nd6 Bc6 12. e4 Nc7 13. Bg5 Bf6 14. h4 Ne6 15. Qd2 a5 16. Rae1 Na6 17. e5 Be7 18. Be4 Nxg5 19. Nxg5 Nc7 20. Rd1 f6 21. Bxc6 dxc6 22. exf6 Bxf6 23. Qe2 Bxg5 24. Ne4 Nd5 25. Nxg5 Qf6 26. Rde1 Ra7 27. Qg4 Re7 28. Rxe7 Qxe7 29. Qd1 Qf6 30. Qc2 Re8 31. Rd1 Kg7 32. a3 Re5 33. Nf3 Re7 34. Ng5 Nf4 35. Qb3 b5 36. Kh2 Nd5 37. Qc2 c4 38. Kg1 Nf4 39. a4 Nd3 40. axb5 cxb5 41. Rb1 a4 42. Qd2 Qf4 43. Qc3+ Qe5 44. Qa5 Qd4 45. Qxb5 {[%emt 2:13:59]} Qxf2+ {[%emt 2:01:30]} 46. Kh2 {[%emt 0:00:30]} Nf4 {[%emt 0:01:30]} 47. Rg1 {[%emt 0:05:47]} Qxh4+ {[%emt 0:00:49]} 48. Nh3 {[%emt 0:00:04]} Nxh3 {[%emt 0:00:11]} 0-1

[Event "Turkish Super League 2019"]
[Site "Konya"]
[Date "2019.07.19"]
[Round "3"]
[White "Sevgi, Volkan"]
[Black "Can, Isik"]
[Result "0-1"]
[ECO "B11"]
[WhiteElo "2302"]
[BlackElo "2374"]
[Annotator "NA"]
[PlyCount "66"]
[EventDate "2019.07.17"]
[EventType "team-tourn"]
[EventCountry "TUR"]
[SourceTitle "playchess.com"]
[Source "ChessBase"]
[SourceQuality "1"]
[TimeControl "40/5400+30:1800+30"]

1. e4 {[%emt 0:22:30]} c6 {[%emt 0:24:30]} 2. Nc3 {[%emt 0:00:30]} d5 {[%emt 0:00:30]} 3. Nf3 {[%emt 0:00:30]} Nf6 {[%emt 0:00:30]} 4. e5 {[%emt 0:00:30]} Ne4 {[%emt 0:00:30]} 5. Ne2 {[%emt 0:00:30]} Qb6 {[%emt 0:00:30]} 6. d4 {[%emt 0:00:30]} e6 {[%emt 0:00:30]} 7. Nfg1 {[%emt 0:00:30]} f6 {[%emt 0:00:30]} 8. f3 {[%emt 0:00:30]} Ng5 {[%emt 0:00:30]} 9. exf6 {[%emt 0:00:30]} gxf6 {[%emt 0:00:30]} 10. f4 {[%emt 0:00:30]} Nf7 {[%emt 0:00:30]} 11. Ng3 {[%emt 0:00:30]} e5 {[%emt 0:00:30]} 12. fxe5 {[%emt 0:00:30]} fxe5 {[%emt 0:00:30]} 13. Nf3 {[%emt 0:00:30]} Be6 {[%emt 0:00:30]} 14. Be2 {[%emt 0:00:30]} Nd7 {[%emt 0:14:30]} 15. Ng5 {[%emt 0:07:30]} Nxg5 {[%emt 0:00:30]} 16. Bxg5 {[%emt 0:00:30]} Be7 {[%emt 0:01:30]} 17. Bh5+ {[%emt 0:39:30]} Kd8 {[%emt 0:02:30]} 18. Bxe7+ {[%emt 0:00:00]} Kxe7 {[%emt 0:00:00]} 19. O-O {[%emt 0:00:00]} Raf8 {[%emt 0:14:00]} 20. Bf3 {[%emt 0:10:49]} Kd6 {[%emt 0:17:19]} 21. Ne2 {[%emt 0:05:09]} e4 {[%emt 0:05:06]} 22. Bh5 {[%emt 0:00:19]} Nf6 {[%emt 0:00:01]} 23. c4 {[%emt 0:03:52]} dxc4 {[%emt 0:00:31]} 24. Nc3 {[%emt 0:01:17]} Nxh5 {[%emt 0:09:06]} 25. Qxh5 {[%emt 0:01:22]} Qxd4+ {[%emt 0:00:05]} 26. Kh1 {[%emt 0:00:00]} Rxf1+ {[%emt 0:03:46]} 27. Rxf1 {[%emt 0:00:00]} Qe5 {[%emt 0:00:10]} 28. Rd1+ {[%emt 0:03:31]} Bd5 {[%emt 0:00:30]} 29. Qf7 {[%emt 0:00:01]} e3 {[%emt 0:00:44]} 30. Qxb7 {[%emt 0:01:37]} e2 {[%emt 0:00:10]} 31. Re1 {[%emt 0:00:57]} Rf8 {[%emt 0:00:15]} 32. Qb4+ {[%emt 0:00:03]} c5 {[%emt 0:00:07]} 33. Nb5+ {[%emt 0:00:17]} Kd7 {[%emt 0:00:14]} 0-1